fUSD/lending_fUSD_20251110
["ID","MTS","AMOUNT","RATE_DAILY","PERIOD"]
[393501511,1762735833606,-2411.90587241,0.00039259,7]
[393501512,1762735833618,-432.28178068,0.00039259,7]
[393501513,1762735833630,-693.86602577,0.00039259,7]
[393501514,1762735833642,-26990.81031988,0.00039259,7]
[393501515,1762735833659,-50737.8826019,0.00039259,7]
[393501516,1762735833670,-1122.51933016,0.00039259,7]
[393501519,1762735837629,-1379.82481552,0.00039259,7]
[393501520,1762735837683,-45584.6516071,0.00039259,7]
[393501521,1762735837695,-5774.14524458,0.00039259,7]
[393501522,1762735837751,-1062.621,0.00039259,7]
[393501523,1762735837763,-281.55,0.00039259,7]
[393501524,1762735837774,-1665.8,0.00039259,7]
[393501525,1762735837794,-1170.02189606,0.00039259,7]
[393501526,1762735837806,-145060.21256343,0.00039259,7]
[393501527,1762735837818,-2090.0,0.00039259,7]
[393501528,1762735837829,-2875.5170958,0.00039259,7]
[393501529,1762735837851,-999.99999998,0.00039259,7]
[393501702,1762735839711,-1545.93751718,0.00039259,7]
[393501704,1762735839723,-3767.10133186,0.00039259,7]
[393501706,1762735839734,-1530.1497038,0.00039259,7]
[393501708,1762735839746,-760.93361622,0.00039259,7]
[393501721,1762735839872,-528.9964432,0.00039259,7]
[393501724,1762735839930,-1107.2924,0.00039259,7]
[393501731,1762735839987,-1756.0,0.00039259,7]
[393501738,1762735840055,-48.75711487,0.00039259,7]
[393501754,1762735842902,-1007.44474776,0.00039259,7]
[393501755,1762735842990,-1071410.4210167,0.00039259,7]
[393501756,1762735843052,-623.74036925,0.00039259,7]
[393501757,1762735843064,-333.44283979,0.00039259,7]
[393501758,1762735843075,-469.06607036,0.00039259,7]
[393501759,1762735843107,-4547.0,0.00039259,7]
[393501764,1762735845868,-151.0,0.00037806,2]
[393501766,1762735845878,-287.44,0.00037806,2]
[393501767,1762735845888,-184.37754106,0.00039159,2]
[393501768,1762735845920,-53.92933334,0.00039159,2]
[393501769,1762735845930,-879.07066666,0.00039259,7]
[393501770,1762735846081,-1239.14219924,0.00039259,7]
[393501771,1762735846346,-808.13842488,0.00039259,7]
[393501776,1762735852685,629.59,0.00039259,120]
[393501777,1762736052162,500.0,0.0003926,120]
[393501780,1762736596727,211.6,0.00013699,2]
[393501781,1762736606491,1304.10328836,0.00039265,120]
[393501782,1762736608630,500.0,0.00039265,120]
[393501783,1762736608884,516.83941789,0.00039265,120]
[393501785,1762736634640,860.33965072,0.00039265,120]
[393501786,1762736695039,1000306.70620977,0.00039265,60]
[393501787,1762736709655,228.57198015,0.00022206,120]
[393501789,1762736972158,-211.6,0.00020187,2]
[393501790,1762736972180,-250.0,0.00022206,2]
[393501791,1762736972202,-300.0,0.00022206,2]
[393501803,1762737031889,-211.6,0.00026676,2]
[393501804,1762737031899,-116.04999984,0.0003137,120]
[393501805,1762737031911,-299.70399928,0.0003137,120]
[393501806,1762737031998,-88.24600088,0.0003137,120]
[393501807,1762737032009,-178.99,0.000321,30]
[393501808,1762737032019,-457.72200012,0.00033,3]
[393501809,1762737032115,-3714.3593008,0.00033,3]
[393501810,1762737032126,-211.6,0.00033165,2]
[393501811,1762737032137,-943.1391,0.000339,30]
[393501812,1762737032147,-507.0,0.00034287,3]
[393501813,1762737032157,-617.213,0.00034288,38]
[393501814,1762737032168,-500.0,0.00034288,7]
[393501815,1762737032178,-500.0,0.00034288,7]
[393501816,1762737032188,-500.0,0.00034288,7]
[393501817,1762737032198,-500.0,0.00034288,7]
[393501818,1762737032211,-500.0,0.00034288,7]
[393501819,1762737032221,-623.8035412,0.00034288,7]
[393501821,1762737032231,-347.08928235,0.00034288,7]
[393501823,1762737032241,-500.0,0.00034289,7]
[393501824,1762737032250,-500.0,0.00034289,7]
[393501826,1762737032259,-500.0,0.00034289,7]
[393501828,1762737032268,-500.0,0.00034289,7]
[393501830,1762737032278,-500.0,0.00034289,7]
[393501832,1762737032287,-500.0,0.00034289,7]
[393501835,1762737032297,-500.0,0.00034289,7]
[393501837,1762737032306,-500.0,0.00034289,7]
[393501839,1762737032316,-500.0,0.00034289,7]
[393501841,1762737032328,-500.0,0.00034289,7]
[393501843,1762737032339,-500.0,0.00034289,7]
[393501845,1762737032349,-500.0,0.00034289,7]
[393501847,1762737032358,-500.0,0.00034289,7]
[393501849,1762737032367,-500.0,0.00034289,7]
[393501851,1762737032377,-668.296,0.00034289,7]
[393501853,1762737032386,-700.0,0.00034289,7]
[393501855,1762737032395,-500.0,0.00034289,7]
[393501858,1762737032408,-500.0,0.00034289,7]
[393501860,1762737032418,-800.0,0.00034289,7]
[393501862,1762737032427,-504.41000467,0.00034289,7]
[393501864,1762737032437,-200.7782747,0.00034459,2]
[393501866,1762737032446,-156.31,0.00036031,30]
[393501868,1762737032455,-1000.0,0.00036368,2]
[393501870,1762737032465,-170.53,0.0003652,60]
[393501872,1762737032474,-170.53,0.0003662,60]
[393501874,1762737032484,-218.09,0.00036668,2]
[393501876,1762737032494,-170.53,0.0003672,60]
[393501878,1762737032503,-170.53,0.0003682,60]
[393501880,1762737032512,-222.03,0.00036859,2]
[393501882,1762737032522,-23.24881067,0.0003692,60]
[393501885,1762737032534,-147.31366647,0.0003692,60]
[393501887,1762737032544,-200.0,0.00037036,2]
[393501889,1762737032554,-180.76,0.00037162,2]
[393501891,1762737032563,-398.50640161,0.00037234,2]
[393501893,1762737032576,-800.0,0.00037259,2]
[393501894,1762737032587,-800.0,0.0003726,2]
[393501897,1762737032598,-153.0,0.00037297,2]
[393501898,1762737032611,-153.0,0.00037298,2]
[393501901,1762737032623,-153.0,0.00037298,2]
[393501903,1762737032633,-153.0,0.00037309,2]
[393501904,1762737032645,-153.0,0.0003731,2]
[393501906,1762737032655,-153.0,0.0003731,2]
[393501908,1762737032665,-153.0,0.00037321,2]
[393501910,1762737032675,-1000.0,0.0003738,2]
[393501912,1762737032686,-170.46,0.00037472,120]
[393501914,1762737032696,-200.0,0.000379,13]
[393501916,1762737032705,-500.0,0.00038,13]
[393501918,1762737032715,-459.0,0.00038075,20]
[393501920,1762737032725,-700.0,0.000381,13]
[393501922,1762737032735,-1000.0,0.000382,13]
[393501924,1762737032746,-200.0,0.00038276,2]
[393501926,1762737032756,-1200.0,0.000383,13]
[393501928,1762737032766,-150.0,0.00038316,30]
[393501930,1762737032775,-248.25783579,0.00038316,30]
[393501932,1762737032785,-150.0,0.00038316,30]
[393501934,1762737032794,-481.3022254,0.00038316,30]
[393501936,1762737032804,-200.0,0.000384,14]
[393501938,1762737032814,-459.0,0.00038468,20]
[393501940,1762737032825,-200.0,0.000385,14]
[393501942,1762737032835,-200.0,0.000386,14]
[393501944,1762737032845,-200.0,0.000387,14]
[393501946,1762737032855,-1000.0,0.00038781,2]
[393501948,1762737032865,-1000.0,0.000388,2]
[393501950,1762737032876,-2236.03080675,0.000388,2]
[393501952,1762737032891,-263.96919325,0.000388,2]
[393501954,1762737032902,-692.0,0.000388,14]
[393501956,1762737032912,-459.0,0.0003886,20]
[393501958,1762737032923,-150.0,0.00038877,120]
[393501960,1762737032934,-2123.24406987,0.000389,2]
[393501980,1762737037842,-513.2835,0.000388,2]
[393501981,1762737037852,-10802.05243199,0.000389,2]
[393501982,1762737037863,-51676.01559916,0.000389,2]
[393501983,1762737037898,-7473.38737334,0.000389,2]
[393501984,1762737037910,-10368.44865943,0.000389,2]
[393501985,1762737037921,-91104.05623749,0.000389,2]
[393501986,1762737037955,-88838.86912872,0.000389,2]
[393501987,1762737037965,-200.0,0.00038975,20]
[393501988,1762737037975,-162.45893552,0.00039,10]
[393501989,1762737037985,-156.12861843,0.00039159,2]
[393501990,1762737037995,-151.0,0.00039159,2]
[393501991,1762737038005,-2104.10595297,0.00039165,2]
[393501992,1762737038015,-621.97639,0.0003917,2]
[393501993,1762737038026,-225.84426417,0.000392,120]
[393501994,1762737038037,-459.0,0.00039253,20]
[393501995,1762737038048,-150.0,0.00039254,7]
[393501996,1762737038059,-23359.4153622,0.00039255,4]
[393501997,1762737038071,-3395.1547417,0.00039259,2]
[393501998,1762737038084,-621.97638,0.00039259,2]
[393501999,1762737038096,-265.01430137,0.00039259,2]
[393502000,1762737038106,-300.0,0.00039264,10]
[393502001,1762737038117,-300.0,0.00039264,10]
[393502002,1762737038127,-300.0,0.00039264,10]
[393502004,1762737038138,-300.0,0.00039264,10]
[393502006,1762737038148,-300.0,0.00039264,10]
[393502008,1762737038158,-300.0,0.00039264,10]
[393502010,1762737038169,-300.0,0.00039264,10]
[393502011,1762737038179,-300.0,0.00039264,10]
[393502012,1762737038190,-300.0,0.00039264,10]
[393502013,1762737038201,-300.0,0.00039264,10]
[393502014,1762737038211,-300.0,0.00039264,10]
[393502015,1762737038221,-360.43085075,0.00039264,10]
[393502016,1762737038232,-155.560586,0.00039264,30]
[393502017,1762737038242,-152.7493,0.00039264,30]
[393502018,1762737038251,-176.8901662,0.00039264,20]
[393502020,1762737038262,-300.15141581,0.00039265,29]
[393502022,1762737038273,-109906.59455588,0.00039265,7]
[393502025,1762737038286,-2207.76057005,0.00039265,7]
[393502026,1762737038298,-20960.59918484,0.00039265,7]
[393502027,1762737038315,-313.71011849,0.00039265,7]
[393502028,1762737038333,-885.13503238,0.00039265,7]
[393502029,1762737038345,-4000.0,0.00039265,7]
[393502031,1762737039958,-2500.0,0.000388,2]
[393502032,1762737039968,-54757.28606801,0.00039265,7]
[393502033,1762737040015,-1345.26806407,0.00039265,7]
[393502034,1762737040028,-618.51915189,0.00039265,7]
[393502035,1762737040040,-424.61229598,0.00039265,7]
[393502036,1762737040070,-405.28705655,0.00039265,7]
[393502037,1762737040127,-309.36698294,0.00039265,7]
[393502053,1762737043194,-3637.56059997,0.00039265,7]
[393502054,1762737043218,-1104443.05208715,0.00039265,7]
[393502055,1762737043230,-145328.02131843,0.00039265,7]
[393502056,1762737043284,-4587.0995,0.00039265,7]
[393502072,1762737046091,-6713.24959999,0.00039265,7]
[393502073,1762737046255,-13592.73592585,0.00039265,7]
[393502074,1762737046312,-4811.61446006,0.00039265,7]
[393502075,1762737046533,-2444.24395857,0.00039265,7]
[393502076,1762737046589,-427.39595676,0.00039265,7]
[393502077,1762737046601,-288.20000639,0.00039265,7]
[393502078,1762737046647,-274.78590457,0.00039265,7]
[393502079,1762737046676,-7.19857911,0.00039265,7]
[393502082,1762737062716,389.5307876,2.21e-05,30]
[393502115,1762737907790,83280.11460383,0.00018,2]
[393502117,1762737993132,-155.85,0.00019369,2]
[393502118,1762737993153,-33.24829075,0.0002,2]
[393502132,1762738092236,-332.59199005,0.000199,2]
[393502133,1762738093848,-300.00772377,0.000199,2]
[393502134,1762738097184,-496.99827417,0.000199,2]
[393502135,1762738101129,-185.643281,0.000199,2]
[393502137,1762738105184,-193.77476996,0.000199,2]
[393502141,1762738122102,-159.46077124,0.0001901,7]
[393502142,1762738122123,-118.78151908,0.000199,2]
[393502143,1762738124448,-172.7793,0.000199,2]
[393502144,1762738128389,-161.55758847,0.000199,2]
[393502145,1762738132312,-205.33489505,0.000199,2]
[393502146,1762738154014,-246.1582886,0.0002,2]
[393502147,1762738156938,-343.99274121,0.0002,2]
[393502148,1762738158073,-833.52894509,0.000199,2]
[393502149,1762738158095,-401.40067944,0.0002,2]
[393502150,1762738158119,-1391.73273749,0.0002,5]
[393502151,1762738158138,-176.41476183,0.0002,7]
[393502152,1762738159112,-210.61956548,0.0002,7]
[393502153,1762738160669,-193.32633915,0.0002,7]
[393502154,1762738165223,-374.96326465,0.0002,7]
[393502155,1762738165246,-66.94603468,0.0002,7]
[393502156,1762738182179,-339.88676447,0.0002,7]
[393502159,1762738207902,174.98448089,0.00039267,120]
[393502160,1762738213491,161.60867153,0.00039267,120]
[393502161,1762738221049,646.33118052,0.00039267,120]
[393502162,1762738221955,337.5699712,0.00039267,120]
[393502163,1762738223800,177.68122579,0.00039267,120]
[393502181,1762738232198,-116.31087315,0.0002,7]
[393502182,1762738232209,-155.85,0.00020698,2]
[393502183,1762738232220,-160.0,0.00021,7]
[393502184,1762738232230,-250.0,0.00021306,2]
[393502185,1762738232239,-250.0,0.00021306,2]
[393502187,1762738232249,-155.85,0.00022027,2]
[393502189,1762738232258,-155.85,0.00023357,2]
[393502190,1762738232267,-155.85,0.00024686,2]
[393502191,1762738232277,-175.40842315,0.000249,2]
[393502192,1762738232286,-504.79395128,0.00025,7]
[393502193,1762738232295,-155.85,0.00026015,2]
[393502194,1762738232306,-400.124093,0.00027207,2]
[393502195,1762738232316,-155.85,0.00027344,2]
[393502196,1762738232326,-1420.9998299,0.0002739,7]
[393502197,1762738232338,-2917.24065313,0.0002739,7]
[393502198,1762738232347,-155.85,0.00028673,2]
[393502199,1762738232357,-155.85,0.00030003,2]
[393502200,1762738232366,-305.0,0.0003107,3]
[393502201,1762738232376,-4525.62745658,0.00031071,7]
[393502202,1762738232386,-661.18473303,0.00031071,7]
[393502203,1762738232395,-252.1224177,0.00031071,7]
[393502204,1762738232405,-155.85,0.00031332,2]
[393502205,1762738232415,-155.85,0.00032661,2]
[393502206,1762738232424,-155.85,0.0003399,2]
[393502208,1762738232434,-482.85194572,0.00034289,7]
[393502210,1762738232444,-500.0,0.00034289,7]
[393502212,1762738232452,-155.85,0.0003532,2]
[393502214,1762738232462,-337.39158631,0.00036308,15]
[393502216,1762738232471,-166.16689951,0.00036308,15]
[393502218,1762738232480,-1657.51430802,0.00036309,2]
[393502274,1762738233216,177.12706138,0.00039267,120]
[393502275,1762738235901,174.91557664,0.00039267,120]
[393502276,1762738238128,-3342.48569198,0.00036309,2]
[393502281,1762738238139,-155.85,0.00036649,2]
[393502283,1762738238149,-244.10523192,0.000372,120]
[393502284,1762738238159,-244.10523191,0.000372,120]
[393502285,1762738238169,-244.10523191,0.000372,120]
[393502286,1762738238179,-244.10523191,0.000372,120]
[393502287,1762738238189,-168.0,0.00037217,7]
[393502288,1762738238199,-153.0,0.0003728,2]
[393502289,1762738238208,-153.0,0.00037292,2]
[393502290,1762738238218,-168.0,0.00037858,2]
[393502291,1762738238228,-493.77,0.00037923,50]
[393502292,1762738238238,-2678.0,0.00037923,2]
[393502293,1762738238248,-155.85,0.00037978,2]
[393502294,1762738238258,-240.14436073,0.000381,33]
[393502295,1762738238269,-370.74,0.000382,120]
[393502296,1762738238278,-2000.0,0.00038289,120]
[393502297,1762738238288,-1206.23,0.00038438,2]
[393502298,1762738238298,-1206.23,0.00038438,2]
[393502299,1762738238308,-1305.04,0.00038478,2]
[393502300,1762738238318,-150.0,0.00038478,2]
[393502301,1762738238327,-1206.23,0.00038478,2]
[393502302,1762738238337,-1206.23,0.00038478,2]
[393502303,1762738238347,-12080.35,0.00038554,2]
[393502304,1762738238357,-13019.89334264,0.000388,2]
[393502305,1762738238374,-1036.05548096,0.000388,2]
[393502306,1762738238386,-481.62479556,0.000388,2]
[393502335,1762738240235,-527.17789698,0.000388,2]
[393502336,1762738240246,-8639.21148837,0.000388,2]
[393502337,1762738240332,-11206.0,0.000388,2]
[393502338,1762738240431,-5270.71549549,0.000388,2]
[393502339,1762738240441,-414.65092,0.0003887,2]
[393502340,1762738240451,-168.0,0.00038889,2]
[393502341,1762738240460,-200.0,0.00038975,20]
[393502342,1762738240469,-7843.0698754,0.00039,120]
[393502343,1762738240552,-2725.9301246,0.00039,120]
[393502344,1762738240564,-33610.58279357,0.00039,2]
[393502345,1762738240576,-34992.04880647,0.00039,2]
[393502347,1762738241013,-1.7e-07,0.00039,2]
[393502348,1762738241025,-10088.13599999,0.00039,2]
[393502349,1762738241901,249.92181716,0.00039267,120]
[393502350,1762738242657,166.71245374,0.00039267,120]
[393502356,1762738243309,-791.60233341,0.00039,2]
[393502357,1762738243321,-754.49696659,0.00039067,30]
[393502358,1762738243331,-168.0,0.00039101,2]
[393502359,1762738243341,-344.1969,0.00039167,2]
[393502360,1762738243351,-279.885,0.00039167,2]
[393502361,1762738243361,-5000.0,0.00039167,30]
[393502362,1762738243371,-1000.0,0.00039167,2]
[393502363,1762738243381,-1614.6442,0.00039167,2]
[393502364,1762738243391,-244.10523191,0.00039167,120]
[393502365,1762738243400,-738.8949981,0.00039167,11]
[393502366,1762738243747,-252.3458739,0.00039167,11]
[393502374,1762738246373,-902.50531644,0.00039115,2]
[393502375,1762738246383,-256.83894714,0.00039167,11]
[393502376,1762738246393,-151.19137113,0.00039167,15]
[393502377,1762738246403,-157.79916549,0.00039167,2]
[393502378,1762738246412,-180.67541134,0.000392,120]
[393502379,1762738246422,-151.0,0.00039265,120]
[393502380,1762738246431,-150.0,0.00039265,60]
[393502381,1762738246440,-150.0,0.00039265,2]
[393502382,1762738246449,-150.0,0.00039265,60]
[393502383,1762738246465,-1000.0,0.00039265,48]
[393502384,1762738246479,-6699.80061799,0.00039267,29]
[393502385,1762738246488,-62846.59315547,0.00039267,7]
[393502386,1762738246835,-1973.54502981,0.00039267,7]
[393502387,1762738246847,-11885.02588549,0.00039267,7]
[393502388,1762738247117,204.46633421,0.00039267,120]
[393502389,1762738248597,218.32217977,0.00039267,120]
[393502390,1762738252217,167.67201,0.00039267,120]
[393502391,1762738258758,312.62057339,0.00039267,120]
[393502392,1762738277486,180.63922471,0.00039267,120]
[393502393,1762738281685,500.0,0.00039267,120]
[393502394,1762738281878,201.41345431,0.00039267,120]
[393502395,1762738288271,170.45932148,0.00039267,120]
[393502396,1762738292665,1000.0,0.00018001,10]
[393502397,1762738308793,257.02612711,0.00039267,120]
[393502398,1762738315562,364.08357502,0.00039267,120]
[393502399,1762738323560,174.14610861,0.00039267,120]
[393502400,1762738325443,158.75005753,0.00039267,120]
[393502401,1762738328091,461.30115043,0.00039267,120]
[393502402,1762738328889,500.0,0.00039267,120]
[393502403,1762738329123,500.0,0.00039267,120]
[393502404,1762738329359,332.85373314,0.00039267,120]
[393502406,1762738336994,161.72042373,0.00039267,120]
[393502407,1762738341209,509.36715792,0.00039267,120]
[393502408,1762738343829,156.09265119,0.00039267,120]
[393502409,1762738347366,306.50449166,0.00039267,120]
[393502410,1762738347646,201.91756961,0.00039267,120]
[393502411,1762738348752,204.14787847,0.00039267,120]
[393502412,1762738349563,182.76554984,0.00039267,120]
[393502413,1762738349607,183.71044385,0.00039267,120]
[393502414,1762738353961,318.169627,0.00039267,120]
[393502415,1762738357308,500.0,0.00039267,120]
[393502416,1762738357550,506.53848769,0.00039267,120]
[393502417,1762738361014,230.21293159,0.00039267,120]
[393502418,1762738368474,640.85242376,0.00039267,120]
[393502419,1762738371295,293.94683541,0.00039267,120]
[393502420,1762738379553,500.0,0.00039267,120]
[393502421,1762738379798,400.01211073,0.00039267,120]
[393502422,1762738382087,179.43810579,0.00039267,120]
[393502423,1762738388138,159.71406575,0.00039267,120]
[393502424,1762738398428,161.74943369,0.00039266,120]
[393502425,1762738400089,500.0,0.00039266,120]
[393502426,1762738400334,180.49374443,0.00039266,120]
[393502427,1762738404654,184.18241959,0.00039266,120]
[393502428,1762738406240,165.10637731,0.00039266,120]
[393502429,1762738406427,371.95031553,0.00039266,120]
[393502430,1762738409644,265.572321,0.00039266,120]
[393502431,1762738411619,244.39779714,0.00039266,120]
[393502432,1762738416389,207.72558511,0.00039266,120]
[393502433,1762738416460,486.28429378,0.00039266,120]
[393502435,1762738421109,191.6683779,0.00039266,120]
[393502436,1762738421355,240.18969697,0.00039266,120]
[393502437,1762738423123,338.24026349,0.00039266,120]
[393502438,1762738424119,169.77202067,0.00039266,120]
[393502439,1762738424818,213.45938673,0.00039266,120]
[393502440,1762738425252,238.80097736,0.00039266,120]
[393502441,1762738430236,365.35788352,0.00039266,120]
[393502442,1762738431936,503.82836984,0.00039266,120]
[393502443,1762738436377,162.36328859,0.00039266,120]
[393502444,1762738437180,266.89066136,0.00039266,120]
[393502446,1762738440597,203.74969512,0.00039266,120]
[393503242,1762738470148,169.80060677,0.00039266,60]
[393503635,1762738482293,187.9519646,0.00039266,120]
[393503739,1762738490153,184.35771039,0.00039266,120]
[393503761,1762738507856,494.08,0.00039266,120]
[393503766,1762738508598,166.60280515,0.00039266,120]
[393503791,1762738516851,157.90942728,0.00039266,120]
[393503794,1762738517950,155.619826,0.00039266,120]
[393503809,1762738545658,206.0,0.00039266,120]
[393503811,1762738546712,156.68760203,0.00039266,120]
[393503842,1762738592331,-320.23585332,0.00032,120]
[393503848,1762738614526,230.0,0.00039266,60]
[393503849,1762738618146,161.45167712,0.00039266,60]
[393503850,1762738619121,175.57145671,0.00039266,120]
[393503851,1762738625995,-153.58760552,0.00032005,120]
[393503852,1762738626031,-500.0,0.0003225,120]
[393503862,1762738635862,161.70200307,0.00039266,120]
[393503894,1762738651266,-165.0,0.0003,14]
[393503895,1762738653270,173.27981053,0.00039266,120]
[393503898,1762738657023,163.90841339,0.00039266,120]
[393503915,1762738664252,-165.0,0.00030411,14]
[393503916,1762738664534,-165.0,0.00031644,14]
[393503974,1762738688974,-167.0,0.00033226,30]
[393504001,1762738709026,194.0,0.00039269,120]
[393504026,1762738721821,500.0,0.00039269,120]
[393504027,1762738722058,272.77578736,0.00039269,120]
[393504161,1762738805885,153.716241,0.00039269,60]
[393504172,1762738817360,174.3485,0.00039269,60]
[393504493,1762738971928,187.9519646,0.00039269,120]
[393504530,1762739003687,180.63922471,0.0003927,120]
[393504531,1762739006454,170.45932148,0.0003927,120]
[393504532,1762739007353,500.0,0.0003927,120]
[393504533,1762739007614,201.41345431,0.0003927,120]
[393504552,1762739023613,257.02612711,0.0003927,120]
[393504568,1762739031163,364.08357502,0.0003927,120]
[393504609,1762739050664,174.14610861,0.0003927,120]
[393504617,1762739052835,558.75005753,0.0003927,120]
[393504618,1762739053896,509.36715792,0.0003927,120]
[393504619,1762739055254,462.76604656,0.0003927,120]
[393504620,1762739055586,337.8408056,0.0003927,60]
[393504621,1762739056271,500.0,0.0003927,120]
[393504622,1762739056518,500.0,0.0003927,120]
[393504623,1762739056766,332.85373314,0.0003927,120]
[393504625,1762739060489,161.72042373,0.0003927,120]
[393504626,1762739061730,183.71044385,0.0003927,120]
[393504637,1762739070520,230.21293159,0.0003927,120]
[393504642,1762739071414,201.91756961,0.0003927,120]
[393504644,1762739071617,573.39545495,0.0003927,120]
[393504651,1762739073368,182.76554984,0.0003927,120]
[393504653,1762739073729,306.50449166,0.0003927,120]
[393504654,1762739076093,184.35771039,0.0003927,120]
[393504660,1762739080441,293.94683541,0.0003927,120]
[393504661,1762739081022,500.0,0.0003927,120]
[393504664,1762739081602,506.53848769,0.0003927,120]
[393504668,1762739085167,500.0,0.0003927,120]
[393504669,1762739085410,500.0,0.0003927,120]
[393504670,1762739085660,500.0,0.0003927,120]
[393504672,1762739085901,500.0,0.0003927,120]
[393504673,1762739086150,500.0,0.0003927,120]
[393504674,1762739086688,500.0,0.0003927,120]
[393504675,1762739086736,156.09265119,0.0003927,120]
[393504676,1762739086806,500.0,0.0003927,120]
[393504677,1762739086990,500.0,0.0003927,120]
[393504678,1762739087232,500.0,0.0003927,120]
[393504679,1762739087809,500.0,0.0003927,120]
[393504680,1762739088101,500.0,0.0003927,120]
[393504681,1762739088235,500.0,0.0003927,120]
[393504682,1762739088362,500.0,0.0003927,120]
[393504683,1762739088479,400.01211073,0.0003927,120]
[393504684,1762739088594,500.0,0.0003927,120]
[393504685,1762739088843,500.0,0.0003927,120]
[393504686,1762739089091,500.0,0.0003927,120]
[393504687,1762739089389,500.0,0.0003927,120]
[393504688,1762739089572,500.0,0.0003927,120]
[393504689,1762739089820,500.0,0.0003927,120]
[393504691,1762739090064,500.0,0.0003927,120]
[393504693,1762739090307,500.0,0.0003927,120]
[393504694,1762739090559,500.0,0.0003927,120]
[393504695,1762739090794,288.88919254,0.0003927,120]
[393504696,1762739091619,204.14787847,0.0003927,120]
[393504697,1762739092494,500.0,0.0003927,120]
[393504698,1762739092722,174.94496369,0.0003927,120]
[393504700,1762739095173,318.169627,0.0003927,120]
[393504701,1762739097733,500.0,0.0003927,120]
[393504702,1762739097989,500.0,0.0003927,120]
[393504703,1762739098255,399.64901625,0.0003927,120]
[393504716,1762739103128,705.04220838,0.0003927,120]
[393504717,1762739106528,489.83953364,0.0003927,120]
[393504718,1762739106994,161.74943369,0.0003927,120]
[393504721,1762739109721,166.60280515,0.0003927,120]
[393504732,1762739112251,406.36176925,0.0003927,120]
[393504737,1762739112995,184.18241959,0.0003927,120]
[393504745,1762739114761,371.95031553,0.0003927,120]
[393504749,1762739115364,500.0,0.0003927,120]
[393504752,1762739115599,330.98679266,0.0003927,120]
[393504773,1762739123113,548.44140071,0.0003927,120]
[393504774,1762739123169,159.71406575,0.0003927,120]
[393504775,1762739124374,165.10637731,0.0003927,120]
[393504776,1762739124864,207.72558511,0.0003927,120]
[393504781,1762739127681,265.572321,0.0003927,120]
[393504783,1762739129803,174.91557664,0.0003927,120]
[393504784,1762739129855,240.18969697,0.0003927,120]
[393504785,1762739130006,244.39779714,0.0003927,120]
[393504789,1762739130699,500.0,0.0003927,120]
[393504790,1762739130936,500.0,0.0003927,120]
[393504791,1762739131186,318.68615467,0.0003927,120]
[393504792,1762739133116,500.0,0.0003927,120]
[393504793,1762739133375,500.0,0.0003927,120]
[393504794,1762739133430,238.80097736,0.0003927,120]
[393504795,1762739133525,500.0,0.0003927,120]
[393504796,1762739133608,500.0,0.0003927,120]
[393504797,1762739133855,500.0,0.0003927,120]
[393504798,1762739133921,500.0,0.0003927,120]
[393504799,1762739134115,500.0,0.0003927,120]
[393504800,1762739134169,500.0,0.0003927,120]
[393504801,1762739134381,505.81335964,0.0003927,120]
[393504802,1762739134435,500.0,0.0003927,120]
[393504803,1762739134632,500.0,0.0003927,120]
[393504804,1762739134861,500.0,0.0003927,120]